[Event "WR Chess Masters 2023"]
[Site "Duesseldorf"]
[Date "2023.02.25"]
[Round "9.5"]
[White "Praggnanandhaa R"]
[Black "Esipenko, Andrey"]
[Result "1/2-1/2"]
[ECO "C42"]
[WhiteElo "2690"]
[BlackElo "2675"]
[Annotator "TA"]
[PlyCount "60"]
[EventDate "2023.02.16"]
[EventCountry "GER"]
[SourceTitle "playchess.com"]
[Source "ChessBase"]
[SourceQuality "1"]
[TimeControl "40/7200:20/3600:900+30"]

{[%evp 17,60,20,31,0,0,18,31,-6,-12,-10,-8,-8,0,-8,-8,-8,-12,-25,0,0,0,0,0,0,0,0,0,0,0,0,0,0,0,0,0,0,0,0,0,0,0,0,0,0,0]} 1. e4 {[%emt 0:00:35]} e5 {[%emt 0:00:11]} 2. Nf3 {[%emt 0:00:05]} Nf6 {[%emt 0:00:25]} 3. Nxe5 {[%emt 0:00:21]} d6 {[%emt 0:00:07]} 4. Nf3 {[%emt 0:00:06]} Nxe4 {[%emt 0:00:05]} 5. d4 {[%emt 0:00:24]} d5 {[%emt 0:00:11]} 6. Bd3 {[%emt 0:00:09]} Bd6 {[%emt 0:00:14]} 7. O-O {[%emt 0:00:11]} O-O {[%emt 0:00:05]} 8. c4 {[%emt 0:00:03]} c6 {[%emt 0:00:04]} 9. Re1 {[%emt 0:00:04]} Re8 {[%emt 0:00:15]} 10. Qc2 {[%emt 0:06:51] Black must now prevent cxd5. C42: Petroff Defence: 3 Nxe5 and unusual White 3rd moves.} Na6 {[%emt 0:01:02][%cal Bb8a6,Ba6c5,Bc5d3][%mdl 32]} 11. a3 {[%emt 0:10:17] Inhibits Nb4.} Bg4 {[%emt 0:00:51]} 12. Ne5 {[%emt 0:12:05] White is slightly better.} Bxe5 {[%emt 0:17:12]} 13. dxe5 {[%emt 0:00:32]} Nac5 {[%emt 0:17:48] [#]} 14. cxd5 $146 {[%emt 0:19:36]} ({Predecessor:} 14. Bf1 Bf5 15. b4 Ne6 16. Qb2 Qh4 17. Be3 Rad8 18. Nd2 d4 19. Nf3 Qg4 20. h3 {0-1 Gabrielian,A (2460)-Paravyan,D (2586) Speed Chess Q1 blitz 2022 (1)}) 14... Nxd3 {[%emt 0:11:08]} (14... cxd5 15. f3 $16) 15. Qxd3 {[%emt 0:05:34] White is weak on the light squares} Rxe5 {[%emt 0:00:24] Strongly threatening ...Nc5.} 16. Qd4 {[%emt 0:01:51] [#] Repels Nc5} (16. Rxe4 $2 Bf5 17. Nc3 Bxe4 $17) 16... Qf6 {[%emt 0:01:01][%cal Og4h3] Threatens to win with ...Bh3!} 17. Nd2 {[%emt 0:17:16]} (17. Rxe4 $2 {loses.} Rxd5 18. Qa4 Rd1+ $19) (17. Nc3 cxd5) 17... cxd5 {[%emt 0:08:48]} (17... Rxd5 $2 18. Qxe4 Bd7 19. Qb4 $18) (17... c5 $5 {[%cal Rc5d4]} 18. Qe3 Rae8 19. Nxe4 Rxe4 20. Qxe4 Rxe4 21. Rxe4 h5 $11) 18. Nxe4 {[%emt 0:08:22] The position is equal.} dxe4 {[%emt 0:00:36]} 19. Rxe4 {[%emt 0:00:28]} Rxe4 {[%emt 0:01:54]} 20. Qxe4 {[%emt 0:00:09]} Qe6 {[%emt 0:00:58]} 21. Qxe6 {[%emt 0:00:23]} Bxe6 $11 {[%emt 0:00:06][%mdl 4096] Endgame KRB-KRB} 22. Be3 {[%emt 0:00:03]} a6 {[%emt 0:00:12]} 23. Rc1 {[%emt 0:00:15]} Rc8 {[%emt 0:00:04]} 24. Rxc8+ {[%emt 0:00:06]} Bxc8 {[%emt 0:00:04] KB-KB} 25. f3 {[%emt 0:00:05]} f6 {[%emt 0:00:03]} 26. Kf2 {[%emt 0:00:03]} Kf7 {[%emt 0:00:03]} 27. Bd4 {[%emt 0:00:06]} Bd7 {[%emt 0:00:04][%cal Bc8d7,Bd7c6,Bc6d5][%mdl 32]} 28. Ke3 {[%emt 0:00:04]} Ke6 {[%emt 0:00:04]} 29. Bc3 {[%emt 0:00:04]} Bc6 {[%emt 0:00:03]} 30. Bd4 {[%emt 0:00:03]} Bd5 {[%emt 0:00:05] A rather calm draw.   Weighted Error Value: White=0.08 (flawless) /Black=0.04 (flawless)} 1/2-1/2